Cogmind - Beta 15 @@@ ROGUE MODE // 2025.05.14 @ 19:46:43 Player: Minty Result: Destroyed by D-53 Grenadier with Mini Grenade Launcher Performance ------------- Evolutions (0) 0 Regions Visited (2) 400 Robots Destroyed (10) 50 Value Destroyed (273) 273 Prototype IDs (0) 0 Alien Tech Used (0) 0 Bonus (0) 0 TOTAL SCORE: 723 Bonus ------- None Cogmind --------- Core Integrity 0/250 Matter 284/300 Energy 248/250 System Corruption 0% Temperature Cool (0) Movement Treading (160) Location -10/Mines Parts ------- > --- POWER (1) -------- Ion Engine > --- PROPULSION (2) --- Light Treads Light Treads > --- UTILITY (2) ------ Small Storage Unit Targeting Computer > --- WEAPON (2) ------- Light Cannon > --- INVENTORY (8) ---- Ion Engine Light Treads Compact Wheel Compact Wheel Heat Sink Targeting Computer Launcher Guidance Computer Power Shielding Peak State ------------ > --- POWER ------------ Ion Engine > --- PROPULSION ------- Aluminum Leg Aluminum Leg > --- UTILITY ---------- Heat Sink Small Storage Unit > --- WEAPON ----------- Medium Laser Assault Rifle > --- INVENTORY -------- Ion Engine Ion Engine Light Treads Light Treads Compact Wheel Compact Wheel Light Assault Rifle [Rating: 7] Favorites ----------- Power Ion Engine Engine Ion Engine Propulsion Aluminum Leg Treads Light Treads Leg Aluminum Leg Utility Small Storage Unit Device Heat Sink Storage Small Storage Unit Processor Targeting Computer Weapon Light Cannon Energy Gun Medium Laser Ballistic Gun Assault Rifle Ballistic Cannon Light Cannon Build | -11 -10 -10 ------- Run | Yrd Mat Min Slots Evolved . | . . . Power . | . . . Propulsion . | . . . Utility . | . . . Weapon . | . . . Parts Attached 10 | . 1 9 Power 1 | . . 1 Engine 1 | . . 1 Core . | . . . Reactor . | . . . Propulsion 4 | . . 4 Treads 4 | . . 4 Leg . | . . . Wheel . | . . . Hover . | . . . Flight . | . . . Utility 2 | . . 2 Device 1 | . . 1 Storage . | . . . Processor 1 | . . 1 Hackware . | . . . Protection . | . . . Artifact . | . . . Weapon 3 | . 1 2 Energy Gun . | . . . Energy Cannon . | . . . Ballistic Gun 1 | . 1 . Ballistic Cannon 2 | . . 2 Launcher . | . . . Special Weapon . | . . . Impact Weapon . | . . . Slashing Weapon . | . . . Piercing Weapon . | . . . Special Melee Weapon . | . . . Unidentified Prototypes . | . . . Parts Lost 4 | . . 4 Power 1 | . . 1 Propulsion 2 | . . 2 Utility . | . . . Weapon 1 | . . 1 Highest Loss Streak 2 | . . 2 To Critical Strikes . | . . . Average Backups 7 | . 6 7 Power 1 | . 1 1 Propulsion 3 | . 4 3 Utility 1 | . . 1 Weapon . | . 1 . Tool/Special . | . . . Unused Backups 14 | . 5 9 Power 3 | . 1 2 Propulsion 6 | . 2 4 Utility 3 | . 1 2 Weapon 2 | . 1 1 Tool/Special . | . . . Average Slot Usage (%) 90 | . 85 93 Engine 13 | . 14 13 Treads 10 | . . 16 Leg 16 | . 28 9 Device 2 | . . 3 Storage 14 | . 14 14 Processor 5 | . . 9 Energy Gun 8 | . 14 4 Ballistic Gun 8 | . 14 4 Ballistic Cannon 10 | . . 16 Peak Build Rating 7 | . 6 7 Average Rating 6 | . 6 6 On Entrance 6 | 6 6 6 Naked Turns . | . . . Heaviest Build 17 | 13 14 17 Greatest Support 40 | 20 20 40 Greatest Overweight (x) 1 | . . 1 Average Overweight (x) . | . . . Largest Inventory Capacity 8 | . 8 8 Average Capacity 8 | . 8 8 Most Carried 8 | . 7 8 Average Carried 7 | . 6 7 Final Capacity 8 | 8 8 8 Final Carried 8 | 6 7 8 Class Distribution -------------------- 100% | Mutant Dominant Class ---------------- Mutant | -10/Materials Mutant | -10/Mines Resources | -11 -10 -10 ----------- Run | Yrd Mat Min Matter Collected 448 | 200 26 222 Remotely . | . . . Salvage Created 396 | . 128 268 Parts 17 | . 8 9 Haulers Intercepted . | . . . Recyclers Shooed 1 | . 1 . Parts Field Recycled . | . . . Retrieved Matter . | . . . Parts Self-Destructed . | . . . Prevented . | . . . Kills | -11 -10 -10 ------- Run | Yrd Mat Min Combat Hostiles Destroyed 13 | . 3 10 Guns 7 | . 3 4 Cannons 6 | . . 6 Classes Destroyed 7 | . 3 4 Recycler 1 | . 1 . Mechanic 1 | . 1 . Swarmer 3 | . 3 . Grunt 2 | . . 2 Sentry 2 | . . 2 Demolisher 1 | . . 1 Assembled 5 | . . 5 Best Kill Streak 6 | . 4 6 Combat Bots Only 6 | . 3 6 Max Kills in Single Turn 1 | . 1 1 Gunslinging . | . . . Exploded . | . . . Melee . | . . . Uniques/NPCs Destroyed . | . . . Combat | -11 -10 -10 -------- Run | Yrd Mat Min Hostile Shots Fired 81 | . 9 72 Missed 24 | . 2 22 Hits 57 | . 7 50 Melee 4 | . . 4 Projectile 53 | . 7 46 AOE 4 | . . 4 Damage Taken 1008 | . 56 952 Core 271 | . 10 261 Absorbed by Shields . | . . . Core Remaining (%) 100 | 100 . . Volleys Fired 49 | . 15 34 Largest 2 | . 2 2 Hottest 70 | . 70 70 Shots Fired 88 | . 29 59 Gun 61 | . 29 32 Cannon 27 | . . 27 Launcher . | . . . Special . | . . . Kinetic 58 | . 15 43 Thermal 30 | . 14 16 Explosive . | . . . Electromagnetic . | . . . Robot Hit Streak 18 | . 4 18 Robot Miss Streak 4 | . 4 3 Penetration Max . | . . . Secondary Targets 2 | . 1 1 Max Gunslinging Chain 1 | . 1 1 Shots Hit Robots 56 | . 14 42 Core Hits 24 | . 8 16 Critical Kills 1 | . . 1 Critical Parts Destroyed . | . . . Critical Strikes 4 | . 1 3 Burn 2 | . 1 1 Destroy 1 | . . 1 Blast 1 | . . 1 Melee Attacks . | . . . Impact . | . . . Slashing . | . . . Piercing . | . . . Sneak Attacks . | . . . Combat Hostiles . | . . . Follow-up Attacks . | . . . Damage Inflicted 794 | . 187 607 Guns 486 | . 173 313 Cannons 293 | . . 293 Explosions . | . . . Melee . | . . . Ramming 15 | . 14 1 Kinetic 578 | . 111 467 Thermal 201 | . 62 139 Explosive . | . . . Electromagnetic . | . . . Impact . | . . . Slashing . | . . . Piercing . | . . . Highest Corruption . | . . . Average Corruption . | . . . Corruption Purged . | . . . Corruption Blocked . | . . . Overload Shots . | . . . Overflow Damage 33 | . . 33 Projectiles 33 | . . 33 Explosions . | . . . Melee . | . . . Knockbacks 5 | . . 5 Impact . | . . . Kinetic 5 | . . 5 Secondary . | . . . Self-Inflicted Damage . | . . . Shots . | . . . Rammed 1 | . . 1 Targets Rammed 6 | . 5 1 Kicked 5 | . 5 . Crushed . | . . . Highest Temperature 120 | . 36 120 Average Temperature 31 | . 14 56 Received Heat Transfer 138 | . . 138 Siege Activations . | . . . Martial Activations . | . . . Shielding Activations . | . . . Robots Disrupted . | . . . Combat Hostiles . | . . . Robots Corrupted . | . . . Combat Hostiles . | . . . Parts Fried . | . . . Impact Corruptions . | . . . Robots Melted . | . . . Combat Hostiles . | . . . Parts Melted 5 | . . 5 Heat Transferred 740 | . 259 481 Parts Sabotaged . | . . . Parts Stolen . | . . . Parts Stripped . | . . . Power Chain Reactions . | . . . Alert | -11 -10 -10 ------- Run | Yrd Mat Min Maximum Alert Level . | . . . Low Security (%) 100 | . 100 100 Level 1 . | . . . Level 2 . | . . . Level 3 . | . . . Level 4 . | . . . Level 5 . | . . . High Security . | . . . Max Security . | . . . Peak Influence 65 | . 65 61 Initial 11 | . . 11 Average 22 | . 25 20 Influence Increases 220 | . 80 140 Destroy 0b10 Robot/C 160 | . 60 100 Destroy 0b10 Robot/NC 10 | . 10 . Destroy Leader 20 | . 10 10 Lose Combat Pursuer 30 | . . 30 Influence Decreases 215 | . 50 165 Entered New Map 19 | . . 19 Time Decay 156 | . 50 106 Lost Part 40 | . . 40 Squads Dispatched 1 | . 1 . Investigation . | . . . Extermination . | . . . Reinforcement 1 | . 1 . Assault . | . . . Garrison . | . . . Intercept . | . . . Searches Triggered . | . . . Construction Impeded . | . . . Haulers Reinforced . | . . . Active Scanning Responses . | . . . Cargo Convoy Interrupts . | . . . Stealth | -11 -10 -10 --------- Run | Yrd Mat Min Distress Signals 1 | . . 1 Communications Jammed . | . . . Distress Signals . | . . . Times Spotted 33 | . 7 26 Peak Tracking Total 15 | . 3 15 Tactical Retreats 3 | . . 3 Traps | -11 -10 -10 ------- Run | Yrd Mat Min Traps Triggered . | . . . Indirectly . | . . . Trap Hack Attempts . | . . . Triggered . | . . . Disarmed . | . . . Reprogrammed . | . . . Reused . | . . . Traps Extracted . | . . . Installed . | . . . Triggered . | . . . Machines | -11 -10 -10 ---------- Run | Yrd Mat Min Machines Disabled 2 | . . 2 Max in Single Turn 1 | . . 1 Machines Repaired . | . . . Machines Dismantled . | . . . Machines Sabotaged . | . . . Overloaded Fab Kills . | . . . Hacking | -11 -10 -10 --------- Run | Yrd Mat Min Machines Accessed 2 | . 2 . Terminals 2 | . 2 . Fabricators . | . . . Repair Stations . | . . . Recycling Units . | . . . Scanalyzers . | . . . Garrison Access . | . . . Total Hacks 3 | . 3 . Successful 1 | . 1 . Failed 2 | . 2 . Catastrophic . | . . . Database Lockouts . | . . . Manual . | . . . Terminals 3 | . 3 . Fabricators . | . . . Repair Stations . | . . . Recycling Units . | . . . Scanalyzers . | . . . Garrison Access . | . . . Terminal Hacks 1 | . 1 . Locate Traps 1 | . 1 . Fabricator Hacks . | . . . Repair Station Hacks . | . . . Recycling Unit Hacks . | . . . Scanalyzer . | . . . Garrison Access Hacks . | . . . Unauthorized Hacks . | . . . Terminals . | . . . Fabricators . | . . . Repair Stations . | . . . Recycling Units . | . . . Scanalyzers . | . . . Garrison Access . | . . . Data Cores Recovered . | . . . Used . | . . . Hacking Detections 2 | . 2 . Full Trace Events . | . . . Feedback Events . | . . . Feedback Blocked . | . . . Robot Schematics Acquired . | . . . Robots Built . | . . . Authchips . | . . . Time . | . . . Total Robot Build Rating . | . . . Part Schematics Acquired . | . . . Parts Built . | . . . Authchips . | . . . Time . | . . . Total Part Build Rating . | . . . Parts Repaired . | . . . Time . | . . . Parts Recycled . | . . . Recycled Matter . | . . . Retrieved Matter . | . . . Retrieved Components . | . . . Parts Scanalyzed . | . . . Part Schematics Acquired . | . . . Parts Damaged . | . . . Bothacking | -11 -10 -10 ------------ Run | Yrd Mat Min Used RIF Installer . | . . . Robots Hacked . | . . . Non-combat . | . . . Combat . | . . . Robot Hacks Applied . | . . . Relay Couplers Released . | . . . Fabnet Peak Effective % . | . . . Robots Rewired . | . . . Allies Hacked . | . . . Hacks Repelled . | . . . Allies | -11 -10 -10 -------- Run | Yrd Mat Min Total Allies . | . . . Largest Group . | . . . Highest-Rated Group . | . . . Highest-Rated Ally . | . . . Total Orders . | . . . Ally Attacks . | . . . Total Damage . | . . . Kills . | . . . Allies Corrupted . | . . . Allies Melted . | . . . Intel | -11 -10 -10 ------- Run | Yrd Mat Min Active Infowar (turns) . | . . . Robot Analysis Total . | . . . Derelict Logs Recovered . | . . . Drone Launches . | . . . Drone Recoveries . | . . . Exploration | -11 -10 -10 ------------- Run | Yrd Mat Min Turns Passed 463 | . 181 282 Spaces Moved 217 | 1 106 110 Core . | . . . Treads 80 | . . 80 Legs 137 | 1 106 30 Wheels . | . . . Hover . | . . . Flight . | . . . Fastest Speed 120 | 120 120 120 Average Speed 137 | 120 120 154 Slowest Speed 190 | 120 120 190 Overloaded Moves . | . . . Propulsion Burnouts . | . . . Robots Hopped . | . . . Potential Cave-ins . | . . . Cave-ins Triggered . | . . . Exploration Rate (%) 18 | 2 23 29 Regions Visited 2 Branch Regions 1 Pre-discovered Areas . | . . . Known Exits Taken . | . . . Unknown Exits Taken 2 | 1 1 . Scrap Searched 1 | . . 1 Spaces Dug . | . . . Terrain Destroyed 2 | . . 2 Melee . | . . . Projectile 2 | . . 2 AOE . | . . . Terrain Rammed . | . . . Walls Destroyed . | . . . Machines Disabled . | . . . Actions | -11 -10 -10 --------- Run | Yrd Mat Min Total 293 | . 129 164 Wait 2 | . 2 . Move 215 | . 105 110 Hop . | . . . Pick Up 4 | . 1 3 Fast Attach 6 | . . 6 Attach 2 | . . 2 Detach 2 | . . 2 Swap 2 | . 1 1 Drop 5 | . . 5 Fire 49 | . 15 34 Melee . | . . . Ram . | . . . Kick 5 | . 5 . Crush 1 | . . 1 Escape Stasis . | . . . Rewire . | . . . Trap . | . . . Miscellaneous . | . . . Route ------- -11/Scrapyard -10/Materials -10/Mines History --------- Turn | Location | Event 1 | -11/Scrapyard | Discovered new exit (range 0) 1 | -11/Scrapyard | Entered Materials 153 | -10/Materials | Discovered new exit (range 16) 182 | -10/Materials | Entered Mines 204 | -10/Mines | Met a Derelict bent on vengeance 326 | -10/Mines | Build established: Mutant 356 | -10/Mines | Assembled infested the area 397 | -10/Mines | Core integrity fell below 50% 422 | -10/Mines | Core integrity fell below 20% 464 | -10/Mines | Destroyed by D-53 Grenadier with Mini Grenade Launcher Last Messages --------------- 00405_ The unstable cave ceiling collapses. 00405_ as-42283 knocked back. 00408_ Destroyed Asb. Hover Unit. 00408_ as-42283 destroyed. 00409_ The unstable cave ceiling collapses. 00411_ Lgt. Treads destroyed. 00413_ Lgt. Cannon destroyed. 00416_ Destroyed Asb. Hover Unit. 00418_ as-47961 destroyed. 00422_ as-61719 destroyed. 00424_ Acquired 6 matter. 00425_ Acquired 12 matter. 00429_ R-06 Scavenger collects Cmb. Airjet. 00430_ Acquired Launcher Guidance Computer. 00432_ The unstable cave ceiling collapses. 00432_ Acquired 74 matter. 00434_ Slammed into R-06 Scavenger. 00434_ R-06 Scavenger sends out distress signal. 00437_ K-01 Serf collects debris. 00464_ D-53 Grenadier knocked back. Map ----- +----------------------------------------------------+ | ????????????????????????????????????????????? | | ?????????????? ???????????????????????????? | | ?????????????? ??????????????????????????? | | ?????????????? % ??????????????????????????? | | ?????????????? ??????????????????????????? | | ??????????????* ??????????????????????????? | | ?????????????#% #??????????????????????????? | | ????????????? #??????????????????????????? | | ????????????? ####???????????????????????? | | ????????????? ???????????????????????? | | ????????????? #???? ????????????????? | | ????????????? ?????k #???????????????? | | ??????????#### #?????? #???????????????? | | ?????????## #??????# #???????????????? | | ?????????# % ##?????? ##??????????????? | | ????????## # %= #?????? #??????????????? | | ????????# # =k| #?????? #??????????????? | | ???????## ###???# #??????????????? | | ??###### % # ##?## #???????????????? | | ??# * ### #????????????????? | | ??# ## ! %#]## ##???????????????? | | ??# #####!#### ########????????? | | ??# #???#%### % #????????? | | ??# #???# % d #????????? | | ??# #???##### ## ##??????????????? | | ### #???????## ### @ #??????????????? | | ## #????????# ##?# #??????????????? | | #????????# #??# #??????????????? | | #????????# #??# ##??????????????? | | ### ##????????# #??## ######???????????????? | | ??# #?????????# #???####????????????????????? | | ??# #?????????# #???????????????????????????? | | ??# ????????? ????????????????????????????? | | ??###?????????# ????????????????????????????? | | ###???????????? ????????????????????????????? | | #??????? ????????????????????????????? | | ###???????????? ????????????????????????????? | | ??????????????? ????????????????????????????? | | ??????????????? ????????????????????????????? | | ????????????????????????????????????????????? | | ????????????????????????????????????????????? | | ????????????????????????????????????????????? | | ????????????????????????????????????????????? | | ????????????????????????????????????????????? | | ????????????????????????????????????????????? | | ????????????????????????????????????????????? | | ????????????????????????????????????????????? | | ????????????????????????????????????????????? | | ????????????????????????????????????????????? | | ????????????????????????????????????????????? | +----------------------------------------------------+ Best States ------------- Heat Dissipation 35 Energy Generation 10 Energy Capacity 250 Matter Stores 300 Matter Capacity 300 Sight Range 16 Terrain Scan Density 10 Evasion (%) 55 Targeting Accuracy 5 Recoil Reduction 2 Item Schematics ----------------- None Robot Schematics ------------------ None Fabricated ------------ Nothing Repaired ---------- Nothing Alien Tech Used ----------------- None Achievements -------------- None Challenges ------------ None Game ------ Seed MicrowarpCoreFocus Manual? 0 Play Time 00:06:06 Cumulative 1040.2 hours Start 2025.05.14 @ 19:42:09 End 2025.05.14 @ 19:46:43 Sessions 1 Manual Loads 0 Difficulty Rogue Special Mode None Game No. 1287 Rogue 1004 Adventurer 124 Explorer 159 Win Type - Total 45 Types 31/0/8/4/1/0/0/1/0/0 Lore% 91 Gallery% 85 Achievement% 80 Wizard Run 0 Options --------- Layout 0 ASCII 0 Keyboard 1 Movement Numpad Keybinds 0 Fullscreen 2 Font 18/X11 Map View 76x50 Zoom Use 0% Tactical HUD 1 Map Filters NONE Filters NONE Steam 1 RUN: a4fd0713-6c7e-4d06-9bfd-5861db39f986